bitfinex-derivatives/quotes_BTCF0:USTF0_20240929
["timestamp","ask_amount","ask_price","bid_price","bid_amount"]
[1727597045365,0.3478,65493.0,65492.0,0.9048]
[1727597045573,0.3378,65493.0,65492.0,0.9048]
[1727597046868,0.3388,65493.0,65492.0,0.9138]
[1727597048462,0.001,65493.0,65492.0,1.07880059]
[1727597048763,0.3608,65499.0,65492.0,1.18880059]
[1727597049556,0.3608,65499.0,65498.0,0.04557352]
[1727597049863,0.3608,65499.0,65497.0,0.04557352]
[1727597050166,0.3608,65499.0,65498.0,0.10987352]
[1727597050562,0.3618,65499.0,65498.0,0.10987352]
[1727597051955,0.3628,65499.0,65498.0,0.10987352]
[1727597052358,0.3628,65499.0,65498.0,0.0643]
[1727597052854,0.3628,65499.0,65498.0,0.10989409]
[1727597053061,0.3618,65499.0,65498.0,0.10989409]
[1727597053258,0.3628,65499.0,65498.0,0.0643]
[1727597058768,0.3628,65499.0,65498.0,0.08583945]
[1727597059564,0.002,65499.0,65498.0,0.08583945]
[1727597061771,0.012,65499.0,65498.0,0.08583945]
[1727597062158,0.002,65499.0,65498.0,0.08583945]
[1727597063076,0.012,65499.0,65498.0,0.08583945]
[1727597063964,0.012,65499.0,65498.0,0.05393945]
[1727597064157,0.011,65499.0,65498.0,0.05393945]
[1727597064366,0.012,65499.0,65498.0,0.05693945]
[1727597065271,0.012,65499.0,65498.0,0.003]
[1727597068072,0.3728,65499.0,65498.0,0.003]
[1727597068260,0.3728,65499.0,65498.0,0.16827866]
[1727597068463,0.3728,65499.0,65498.0,0.003]
[1727597071576,0.073319,65498.0,65497.0,0.07620682]
[1727597071777,0.083319,65498.0,65497.0,0.16555894]
[1727597073481,0.083319,65498.0,65497.0,0.1808003]
[1727597073781,0.073319,65498.0,65497.0,0.1955735]
[1727597073979,0.3618,65499.0,65497.0,0.1955735]
[1727597074179,0.3618,65499.0,65498.0,0.1955735]
[1727597074377,0.3618,65499.0,65498.0,0.2955735]
[1727597074580,0.3618,65499.0,65498.0,0.1955735]
[1727597074777,0.3718,65499.0,65498.0,0.1955735]
[1727597074976,0.438117,65499.0,65498.0,0.1955098]
[1727597076083,0.437117,65499.0,65498.0,0.1955098]
[1727597076273,0.447117,65499.0,65498.0,0.1955098]
[1727597076583,0.437117,65499.0,65498.0,0.1955098]
[1727597077982,0.076317,65499.0,65498.0,0.1955098]
[1727597078878,0.076317,65499.0,65498.0,0.21788251]
[1727597079081,0.086317,65499.0,65498.0,0.12853039]
[1727597079282,0.076317,65499.0,65498.0,0.2175027]
[1727597080884,0.077317,65499.0,65498.0,0.21743641]
[1727597082485,0.077317,65499.0,65498.0,0.22743641]
[1727597084075,0.077317,65499.0,65498.0,0.19768218]
[1727597084076,0.001,65499.0,65498.0,0.19768218]
[1727597084274,0.0036,65504.0,65503.0,0.076313]
[1727597084484,0.0036,65509.0,65503.0,0.65582038]
[1727597084785,0.076304,65511.0,65503.0,0.65582038]
[1727597084786,0.076304,65511.0,65504.0,0.22642038]
[1727597084991,0.076304,65511.0,65505.0,0.19502038]
[1727597085178,0.076304,65511.0,65509.0,0.3608]
[1727597085379,0.076304,65511.0,65510.0,0.11949047]
[1727597086083,0.076304,65511.0,65510.0,0.22092376]
[1727597086387,0.076304,65511.0,65510.0,0.21092376]
[1727597086584,0.076304,65511.0,65510.0,0.11949047]
[1727597088191,0.083304,65511.0,65510.0,0.11949047]
[1727597088780,0.093304,65511.0,65510.0,0.11949047]
[1727597089588,0.093304,65511.0,65510.0,0.19561586]
[1727597089785,0.094304,65511.0,65510.0,0.19561586]
[1727597089990,0.084304,65511.0,65510.0,0.11949047]
[1727597090383,0.094304,65511.0,65510.0,0.11949047]
[1727597090583,0.094304,65511.0,65510.0,0.1956047]
[1727597092492,0.094304,65511.0,65510.0,0.10661423]
[1727597093378,0.104304,65511.0,65510.0,0.10661423]
[1727597093582,0.104304,65511.0,65510.0,0.0305]
[1727597094183,0.104304,65511.0,65510.0,0.10661423]
[1727597094686,0.104304,65511.0,65510.0,0.0305]
[1727597094994,0.104304,65511.0,65510.0,0.10661423]
[1727597095493,0.104304,65511.0,65510.0,0.10906423]
[1727597095791,0.104304,65511.0,65510.0,0.19731863]
[1727597096490,0.104304,65511.0,65510.0,0.19727939]
[1727597096996,0.104304,65511.0,65510.0,0.10906423]
[1727597097197,0.104304,65511.0,65510.0,0.21906423]
[1727597098387,0.104304,65511.0,65510.0,0.14295]
[1727597098588,0.104304,65511.0,65510.0,0.21906423]
[1727597099592,0.104304,65511.0,65510.0,0.14295]
[1727597100487,0.104304,65511.0,65510.0,0.11245]
[1727597100683,0.104304,65511.0,65510.0,0.00245]
[1727597100684,0.465104,65511.0,65510.0,0.00245]
[1727597101897,0.465104,65511.0,65510.0,0.06335638]
[1727597102087,0.465104,65511.0,65510.0,0.00245]
[1727597102283,0.465104,65511.0,65510.0,0.06335601]
[1727597102488,0.465104,65511.0,65510.0,0.00245]
[1727597103098,0.465104,65511.0,65510.0,0.0481437]
[1727597103497,0.465104,65511.0,65510.0,0.00245]
[1727597104984,0.455104,65511.0,65510.0,0.00245]
[1727597106890,0.455104,65511.0,65510.0,0.01245]
[1727597107091,0.455104,65511.0,65510.0,0.00245]
[1727597108593,0.465104,65511.0,65510.0,0.00245]
[1727597109095,0.455104,65511.0,65510.0,0.00245]
[1727597109892,0.455104,65511.0,65510.0,0.07856423]
[1727597110295,0.455104,65511.0,65510.0,0.16722283]
[1727597110505,0.455104,65511.0,65510.0,0.0911086]
[1727597110689,0.455104,65511.0,65510.0,0.16732256]
[1727597110894,0.455104,65511.0,65510.0,0.17732256]
[1727597111503,0.3788,65511.0,65510.0,0.10110233]
[1727597111692,0.3788,65511.0,65510.0,0.09110233]
[1727597113009,0.3788,65511.0,65510.0,0.10110233]
[1727597114304,0.018,65511.0,65510.0,0.10110233]
[1727597115307,0.018,65511.0,65510.0,0.10101837]
[1727597116110,0.018,65511.0,65510.0,0.20659392]
[1727597116811,0.0036,65516.0,65510.0,0.27193219]
[1727597117006,0.0036,65521.0,65517.0,0.076296]
[1727597117203,0.0036,65522.0,65517.0,0.20486437]
[1727597117402,0.07629,65523.0,65518.0,0.08856837]
[1727597117602,0.07629,65523.0,65518.0,0.12026837]
[1727597117802,0.07629,65523.0,65519.0,0.18006378]
[1727597118001,0.07629,65523.0,65520.0,0.08856837]
[1727597118206,0.0036,65526.0,65521.0,0.08856837]
[1727597118512,0.0036,65530.0,65524.0,0.16778341]
[1727597118816,0.3608,65532.0,65528.0,0.07619632]
[1727597119108,0.4208,65532.0,65528.0,0.07619632]
[1727597119610,0.4208,65532.0,65530.0,0.06093474]
[1727597119818,0.076281,65531.0,65530.0,0.04570114]
[1727597120002,0.228581,65531.0,65529.0,0.04570114]
[1727597120308,0.228581,65531.0,65528.0,0.04570114]
[1727597120309,0.076283,65529.0,65528.0,0.04570114]
[1727597120496,0.076283,65529.0,65527.0,0.04570114]
[1727597120497,0.166283,65529.0,65527.0,0.04570114]
[1727597122099,0.166283,65529.0,65527.0,0.04670114]
[1727597122306,0.177283,65529.0,65527.0,0.04670114]
[1727597125211,0.187283,65529.0,65527.0,0.04770114]
[1727597125507,0.187283,65529.0,65528.0,0.04570114]
[1727597126613,0.187283,65529.0,65527.0,0.002]
[1727597126614,0.187283,65529.0,65527.0,0.04770114]
[1727597126912,0.187283,65529.0,65528.0,0.04570114]
[1727597127411,0.191283,65529.0,65528.0,0.04670114]
[1727597127799,0.191283,65529.0,65528.0,0.001]
[1727597128003,0.191283,65529.0,65528.0,0.04666265]
[1727597128617,0.191283,65529.0,65528.0,0.04566048]
[1727597128618,0.115,65529.0,65528.0,0.04566048]
[1727597128910,0.115,65529.0,65527.0,0.078285]
[1727597129101,0.104,65529.0,65527.0,0.13821974]
[1727597129303,0.118,65529.0,65528.0,0.001]
[1727597129508,0.028,65529.0,65528.0,0.06186104]
[1727597129909,0.028,65529.0,65528.0,0.001]
[1727597130106,0.028,65529.0,65528.0,0.011]
[1727597130610,0.028,65529.0,65528.0,0.07185267]
[1727597131007,0.028,65529.0,65528.0,0.07285267]
[1727597131914,0.028,65529.0,65528.0,0.06285267]
[1727597132105,0.014,65529.0,65528.0,0.001]
[1727597132306,0.028,65529.0,65528.0,0.001]
[1727597132510,0.028,65529.0,65528.0,0.06185267]
[1727597132705,0.028,65529.0,65528.0,0.001]
[1727597133515,0.038,65529.0,65528.0,0.002]
[1727597135522,0.038,65529.0,65528.0,0.06285267]
[1727597135815,0.038,65529.0,65528.0,0.002]
[1727597136408,0.038,65529.0,65528.0,0.06285267]
[1727597137935,0.114283,65529.0,65528.0,0.06285267]
[1727597138215,0.114283,65529.0,65528.0,0.002]
[1727597138917,0.114283,65529.0,65528.0,0.04766005]
[1727597139507,0.114283,65529.0,65528.0,0.002]
[1727597140908,0.475083,65529.0,65528.0,0.002]
[1727597142510,0.475083,65529.0,65528.0,0.06285267]
[1727597143519,0.475083,65529.0,65528.0,0.002]
[1727597143712,0.475083,65529.0,65528.0,0.06294415]
[1727597143913,0.475083,65529.0,65528.0,0.002]
[1727597144518,0.475083,65529.0,65528.0,0.06294415]
[1727597145624,0.475083,65529.0,65528.0,0.002]
[1727597150615,0.114283,65529.0,65528.0,0.002]
[1727597150816,0.475083,65529.0,65528.0,0.07819632]
[1727597151821,0.475083,65529.0,65528.0,0.16627606]
[1727597152518,0.3988,65529.0,65528.0,0.24256006]
[1727597153523,0.3988,65529.0,65528.0,0.16636374]
[1727597155122,0.3988,65529.0,65528.0,0.09007974]
[1727597156716,0.475083,65529.0,65528.0,0.09007974]
[1727597161028,0.475083,65529.0,65528.0,0.002]
[1727597161227,0.475083,65529.0,65528.0,0.0900589]
[1727597162224,0.465083,65529.0,65528.0,0.1000589]
[1727597162728,0.465083,65529.0,65528.0,0.1312589]
[1727597163035,0.3888,65529.0,65528.0,0.2075429]
[1727597164438,0.028,65529.0,65528.0,0.2075429]
[1727597166826,0.028,65529.0,65528.0,0.1975429]
[1727597167024,0.048,65529.0,65528.0,0.1975429]
[1727597167526,0.124283,65529.0,65528.0,0.1212589]
[1727597170338,0.048,65529.0,65528.0,0.1999929]
[1727597170535,0.028,65529.0,65528.0,0.19989373]
[1727597170736,0.038,65529.0,65528.0,0.19989373]
[1727597170932,0.028,65529.0,65528.0,0.19989373]
[1727597172141,0.028,65529.0,65528.0,0.20989373]
[1727597173143,0.028,65529.0,65528.0,0.19989373]
[1727597173332,0.028,65529.0,65528.0,0.12360973]
[1727597174937,0.028,65529.0,65528.0,0.20989373]
[1727597175138,0.028,65529.0,65528.0,0.30138914]
[1727597176341,0.028,65529.0,65528.0,0.20989373]
[1727597176545,0.028,65529.0,65528.0,0.30138914]
[1727597176938,0.028,65529.0,65528.0,0.20989373]
[1727597177432,0.028,65529.0,65528.0,0.31456198]
[1727597178036,0.028,65529.0,65528.0,1.3048698]
[1727597179835,0.028,65529.0,65528.0,1.30439759]
[1727597180036,0.028,65529.0,65528.0,2.1545018]
[1727597180643,0.0036,65533.0,65532.0,0.076279]
[1727597180845,0.0072,65539.0,65537.0,0.076272]
[1727597181146,0.076265,65544.0,65538.0,0.16393584]
[1727597181348,0.086265,65544.0,65540.0,0.07620688]
[1727597181538,0.086265,65544.0,65543.0,0.06095109]
[1727597182635,0.086265,65544.0,65539.0,0.07620688]
[1727597182636,0.086265,65544.0,65542.0,0.06095109]
[1727597184244,0.094265,65544.0,65542.0,0.06195109]
[1727597184444,0.018,65544.0,65542.0,0.06195109]
[1727597185044,0.018,65544.0,65542.0,0.06295109]
[1727597185638,0.018,65544.0,65542.0,0.002]
[1727597186438,0.018,65544.0,65542.0,0.06295109]
[1727597188542,0.018,65544.0,65542.0,0.002]
[1727597189139,0.018,65544.0,65542.0,0.06295109]
[1727597189340,0.018,65544.0,65543.0,0.076266]
[1727597190754,0.008,65544.0,65543.0,0.076266]
[1727597191641,0.008,65544.0,65543.0,0.14721709]
[1727597191841,0.008,65544.0,65543.0,0.076266]
[1727597192048,0.008,65544.0,65543.0,0.077266]
[1727597192450,0.008,65544.0,65543.0,0.13815977]
[1727597193336,0.008,65544.0,65543.0,0.077266]
[1727597193944,0.008,65544.0,65543.0,0.087266]
[1727597195049,0.014,65544.0,65543.0,0.088266]
[1727597195750,0.014,65544.0,65543.0,0.078266]
[1727597196159,0.024,65544.0,65543.0,0.078266]
[1727597196852,0.024,65544.0,65543.0,0.002]
[1727597197050,0.024,65544.0,65543.0,0.0628812]
[1727597200645,0.014,65544.0,65543.0,0.1391472]
[1727597200851,0.014,65544.0,65543.0,0.078266]
[1727597201955,0.014,65544.0,65543.0,0.088266]
[1727597205652,0.014,65544.0,65543.0,0.25176]
[1727597206654,0.014,65544.0,65543.0,0.17555312]
[1727597207451,0.014,65544.0,65543.0,0.17800312]
[1727597207852,0.014,65544.0,65543.0,0.35114746]
[1727597208254,0.014,65544.0,65543.0,0.50283239]
[1727597213061,0.014,65544.0,65543.0,0.49283239]
[1727597213262,0.024,65544.0,65543.0,0.49283239]
[1727597214357,0.100265,65544.0,65543.0,0.0916738]
[1727597217565,0.100265,65544.0,65543.0,0.08071944]
[1727597220065,0.100265,65544.0,65543.0,0.00445]
[1727597222561,0.461065,65544.0,65543.0,0.00445]
[1727597226566,0.100265,65544.0,65543.0,0.00445]
[1727597226766,0.461065,65544.0,65543.0,0.00445]
[1727597227163,0.461065,65544.0,65543.0,0.06541289]
[1727597227363,0.461065,65544.0,65543.0,0.00445]
[1727597227564,0.461065,65544.0,65543.0,0.06540877]
[1727597228364,0.461065,65544.0,65543.0,0.00445]
[1727597228972,0.461065,65544.0,65543.0,0.06540721]
[1727597231081,0.461065,65544.0,65543.0,0.06295721]
[1727597232581,0.100265,65544.0,65543.0,0.06295721]
[1727597232878,0.461065,65544.0,65543.0,0.06295721]
[1727597234780,0.100265,65544.0,65543.0,0.06295721]
[1727597234983,0.461065,65544.0,65543.0,0.06295721]
[1727597235675,0.100265,65544.0,65543.0,0.06295721]
[1727597235985,0.461065,65544.0,65543.0,0.06295721]
[1727597237079,0.100265,65544.0,65543.0,0.06295721]
[1727597237289,0.461065,65544.0,65543.0,0.06295721]
[1727597237782,0.461065,65544.0,65543.0,0.002]
[1727597237985,0.100265,65544.0,65543.0,0.06294936]
[1727597238282,0.461065,65544.0,65543.0,0.06294936]
[1727597238671,0.461065,65544.0,65543.0,0.002]
[1727597245390,0.461065,65544.0,65543.0,0.00445]
[1727597245690,0.461065,65544.0,65543.0,0.08071944]
[1727597246092,0.100265,65544.0,65543.0,0.08071944]
[1727597246295,0.461065,65544.0,65543.0,0.08071944]
[1727597246488,0.461065,65544.0,65543.0,0.16824761]
[1727597248391,0.461065,65544.0,65543.0,0.09197817]
[1727597248392,0.581065,65544.0,65543.0,0.09197817]
[1727597254597,0.581065,65544.0,65543.0,0.09193982]
[1727597259297,0.581065,65544.0,65543.0,0.09185306]
[1727597259487,0.581065,65544.0,65543.0,0.12445306]
[1727597261293,0.220265,65544.0,65543.0,0.03705]
[1727597261603,0.220265,65544.0,65543.0,0.12442673]
[1727597264407,0.220265,65544.0,65543.0,0.12442505]
[1727597266502,0.100265,65544.0,65543.0,0.12442505]
[1727597268706,0.100265,65544.0,65543.0,0.12197505]
[1727597275605,0.100265,65544.0,65543.0,0.13197505]
[1727597275910,0.100265,65544.0,65543.0,0.12197505]
[1727597278812,0.100265,65544.0,65543.0,0.12203703]
[1727597280111,0.024,65544.0,65543.0,0.12203703]
[1727597280612,0.014,65544.0,65543.0,0.12203703]
[1727597283419,0.024,65544.0,65543.0,0.12203703]
[1727597284912,0.024,65544.0,65543.0,0.12448703]
[1727597288710,0.100265,65544.0,65543.0,0.12448703]
[1727597299328,0.024,65544.0,65543.0,0.12448703]
[1727597299827,0.024,65544.0,65543.0,0.13448703]
[1727597300234,0.024,65544.0,65543.0,0.12448703]
[1727597306326,0.024,65544.0,65543.0,0.15448703]
[1727597306721,0.024,65544.0,65543.0,0.15203703]
[1727597306937,0.014,65544.0,65543.0,0.22830303]
[1727597308430,0.014,65544.0,65543.0,0.25082663]
[1727597309538,0.014,65544.0,65543.0,0.46227488]
[1727597310137,0.014,65544.0,65543.0,0.37082663]
[1727597310441,0.014,65544.0,65543.0,0.53315005]
[1727597310629,0.0072,65549.0,65548.0,0.07626]
[1727597310851,0.0036,65552.0,65550.0,0.076258]
[1727597311148,0.196254,65554.0,65551.0,0.08695603]
[1727597311435,0.196254,65554.0,65553.0,0.07615571]
[1727597311651,0.196254,65554.0,65551.0,0.07615571]
[1727597312932,0.206254,65554.0,65551.0,0.07615571]
[1727597313136,0.206254,65554.0,65551.0,0.07715571]
[1727597313137,0.076255,65553.0,65551.0,0.07715571]
[1727597313341,0.096255,65553.0,65551.0,0.001]
[1727597316240,0.096255,65553.0,65551.0,0.02255982]
[1727597316538,0.096255,65553.0,65551.0,0.001]
[1727597317432,0.096255,65553.0,65550.0,0.07615571]
[1727597317624,0.096255,65553.0,65549.0,0.076259]
[1727597317625,0.096255,65553.0,65551.0,0.001]
[1727597318642,0.196256,65552.0,65551.0,0.001]
[1727597318834,0.216256,65552.0,65551.0,0.06187681]
[1727597319026,0.02,65552.0,65551.0,0.06187681]
[1727597319229,0.3608,65553.0,65552.0,0.076256]
[1727597319541,0.3608,65553.0,65552.0,0.33255656]
[1727597320241,0.3608,65553.0,65552.0,0.24581171]
[1727597320435,0.3608,65553.0,65552.0,0.33250504]
[1727597320632,0.3608,65553.0,65552.0,0.24581171]
[1727597321655,0.3608,65553.0,65552.0,0.169656]
[1727597321944,0.4108,65553.0,65552.0,0.169656]
[1727597322240,0.4108,65553.0,65552.0,0.108856]
[1727597322429,0.5308,65553.0,65551.0,0.00345]
[1727597323240,0.5308,65553.0,65552.0,0.001]
[1727597323647,0.5308,65553.0,65552.0,0.002]
[1727597324447,0.5308,65553.0,65552.0,0.001]
[1727597325545,0.5308,65553.0,65552.0,0.002]
[1727597326442,0.5308,65553.0,65552.0,0.001]
[1727597326638,0.5358,65553.0,65552.0,0.001]
[1727597327542,0.5358,65553.0,65552.0,0.002]
[1727597328149,0.175,65553.0,65552.0,0.002]
[1727597329144,0.005,65553.0,65552.0,0.002]
[1727597329743,0.015,65553.0,65552.0,0.002]
[1727597334749,0.135,65553.0,65552.0,0.002]
[1727597336054,0.135,65553.0,65552.0,0.07815571]
[1727597336555,0.135,65553.0,65552.0,0.16471936]
[1727597336758,0.135,65553.0,65552.0,0.07815571]
[1727597337650,0.135,65553.0,65552.0,0.16477257]
[1727597338554,0.135,65553.0,65552.0,0.08861686]
[1727597339362,0.135,65553.0,65552.0,0.08859213]
[1727597342662,0.135,65553.0,65552.0,0.08858403]
[1727597342966,0.135,65553.0,65552.0,0.18001817]
[1727597347366,0.135,65553.0,65552.0,0.18002514]
[1727597348654,0.135,65553.0,65552.0,0.088591]
[1727597348858,0.135,65553.0,65552.0,0.18003277]
[1727597350462,0.135,65553.0,65552.0,0.449391]
[1727597352162,0.135,65553.0,65552.0,0.3628]
[1727597352368,0.135,65553.0,65552.0,0.08855966]
[1727597353165,0.135,65553.0,65552.0,0.17999689]
[1727597357067,0.135,65553.0,65552.0,0.17995791]
[1727597357371,0.015,65553.0,65552.0,0.17995791]
[1727597361876,0.015,65553.0,65552.0,0.18000637]
[1727597363774,0.015,65553.0,65552.0,0.21190637]
[1727597364364,0.015,65553.0,65552.0,0.28816237]
[1727597364777,0.005,65553.0,65552.0,0.28816237]
[1727597365178,0.005,65553.0,65552.0,0.28716237]
[1727597365382,0.005,65553.0,65552.0,0.28816237]
[1727597365679,0.005,65553.0,65552.0,0.29816237]
[1727597366274,0.005,65553.0,65552.0,0.21159323]
[1727597366578,0.005,65553.0,65552.0,0.29822201]
[1727597369671,0.00255,65553.0,65552.0,0.29822201]
[1727597370484,0.00255,65553.0,65552.0,0.20678478]
[1727597371184,0.00255,65553.0,65552.0,0.20684401]
[1727597372570,0.01255,65553.0,65552.0,0.19684401]
[1727597380585,0.01255,65553.0,65552.0,0.19681352]
[1727597381676,0.01255,65553.0,65552.0,0.19681613]
[1727597381887,0.01255,65553.0,65552.0,0.28825336]
[1727597382486,0.01255,65553.0,65552.0,0.19681613]
[1727597388800,0.00255,65553.0,65552.0,0.19681613]
[1727597389399,0.00255,65553.0,65552.0,0.20681613]
[1727597390199,0.00255,65553.0,65552.0,0.29351264]
[1727597390404,0.00255,65553.0,65552.0,0.20685251]
[1727597392792,0.01255,65553.0,65552.0,0.20685251]
[1727597393700,0.00255,65553.0,65552.0,0.20685251]
[1727597393903,0.01255,65553.0,65552.0,0.20685251]
[1727597394495,0.01255,65553.0,65552.0,0.19685251]
[1727597395205,0.01255,65553.0,65552.0,0.19684241]
[1727597396202,0.00255,65553.0,65552.0,0.37684241]
[1727597396405,0.0036,65557.0,65556.0,0.076251]
[1727597396701,0.076247,65560.0,65558.0,0.076248]
[1727597396901,0.076244,65562.0,65559.0,0.08635599]
[1727597397200,0.076244,65562.0,65560.0,0.07614695]
[1727597397406,0.076244,65562.0,65561.0,0.16245854]
[1727597397407,0.206244,65562.0,65561.0,0.16245854]
[1727597398611,0.076246,65560.0,65559.0,0.07612626]
[1727597398905,0.256246,65560.0,65558.0,0.07612626]
[1727597399111,0.12,65559.0,65558.0,0.07612626]
[1727597399306,0.17,65559.0,65558.0,0.16349341]
[1727597399806,0.00084,65565.0,65564.0,0.076242]
[1727597400008,0.00084,65565.0,65564.0,0.44716715]
[1727597400009,0.01,65565.0,65564.0,0.44716715]
[1727597400206,0.0036,65571.0,65564.0,0.44716715]
[1727597400503,0.0236,65571.0,65570.0,0.0760719]
[1727597400711,0.3808,65571.0,65570.0,0.0760719]
[1727597400902,0.076235,65570.0,65566.0,0.0760719]
[1727597401098,0.076235,65570.0,65565.0,0.0760719]
[1727597401099,0.186235,65570.0,65565.0,0.0760719]
[1727597401298,0.186235,65570.0,65569.0,0.06087483]
[1727597401499,0.186235,65570.0,65568.0,0.06087483]
[1727597401711,0.12,65569.0,65568.0,0.06087483]
[1727597401904,0.17,65569.0,65568.0,0.06087483]
[1727597403406,0.17,65569.0,65564.0,0.0760719]
[1727597403609,0.17,65569.0,65568.0,0.06081209]
[1727597405505,0.17,65569.0,65567.0,0.06081209]
[1727597405807,0.12,65568.0,65567.0,0.06081209]
[1727597406013,0.14,65568.0,65567.0,0.06081209]
[1727597406904,0.14,65568.0,65567.0,0.06181209]
[1727597410916,0.02,65568.0,65567.0,0.06181209]
[1727597411113,0.02,65568.0,65567.0,0.001]
[1727597411321,0.02,65568.0,65567.0,0.077238]
[1727597411618,0.02,65568.0,65567.0,0.078238]
[1727597412511,0.02,65568.0,65567.0,0.13902904]
[1727597412820,0.14,65568.0,65567.0,0.13902904]
[1727597413117,0.14,65568.0,65567.0,0.13802904]
[1727597413318,0.14,65568.0,65567.0,0.13902904]
[1727597419517,0.14,65568.0,65567.0,0.078238]
[1727597422614,0.14,65568.0,65567.0,0.13906149]
[1727597423417,0.14,65568.0,65567.0,0.078238]
[1727597427416,0.14,65568.0,65567.0,0.1543099]
[1727597427922,0.14,65568.0,65567.0,0.24015925]
[1727597429415,0.14,65568.0,65567.0,0.16408735]
[1727597436324,0.14,65568.0,65567.0,0.16419792]
[1727597436826,0.14,65568.0,65567.0,0.08795992]
[1727597438131,0.216237,65568.0,65567.0,0.002]
[1727597438322,0.216237,65568.0,65567.0,0.08792824]
[1727597441934,0.216237,65568.0,65567.0,0.08799224]
[1727597445632,0.216237,65568.0,65567.0,0.08801624]
[1727597450237,0.096237,65568.0,65567.0,0.08801624]
[1727597452133,0.216237,65568.0,65567.0,0.08801624]
[1727597455546,0.216237,65568.0,65567.0,0.08794693]
[1727597460339,0.216237,65568.0,65567.0,0.08793157]
[1727597463549,0.216237,65568.0,65567.0,0.002]
[1727597463746,0.216237,65568.0,65567.0,0.08795285]
[1727597465347,0.216237,65568.0,65567.0,0.16417031]
[1727597466354,0.216237,65568.0,65567.0,0.002]
[1727597467451,0.216237,65568.0,65560.0,0.07621746]
[1727597467452,0.076241,65565.0,65560.0,0.07621746]
[1727597467645,0.076241,65565.0,65557.0,0.0036]
[1727597467646,0.076246,65560.0,65558.0,0.07621746]
[1727597467846,0.076249,65558.0,65556.0,0.07621746]
[1727597468048,0.12,65557.0,65556.0,0.07621746]
[1727597468246,0.12,65557.0,65554.0,0.07621746]
[1727597468247,0.076251,65556.0,65554.0,0.07621746]
[1727597468554,0.12,65555.0,65554.0,0.07621746]
[1727597468755,0.15,65555.0,65553.0,0.07619143]
[1727597468952,0.12,65554.0,65553.0,0.07619143]
[1727597469146,0.076255,65553.0,65552.0,0.07619143]
[1727597469343,0.256255,65553.0,65552.0,0.16269884]
[1727597469957,0.256255,65553.0,65552.0,0.07619143]
[1727597470151,0.256255,65553.0,65551.0,0.07619143]
[1727597470352,0.12,65552.0,65550.0,0.07619143]
[1727597470555,0.13,65552.0,65550.0,0.07619143]
[1727597473359,0.13,65552.0,65549.0,0.19619143]
[1727597474256,0.01,65552.0,65549.0,0.19619143]
[1727597474855,0.011,65552.0,65549.0,0.19619143]
[1727597475055,0.087256,65552.0,65549.0,0.19619143]
[1727597477160,0.087256,65552.0,65549.0,0.12]
[1727597477661,0.087256,65552.0,65549.0,0.20619143]
[1727597477964,0.077256,65552.0,65549.0,0.20619143]
[1727597478266,0.001,65552.0,65550.0,0.076257]
[1727597478461,0.001,65552.0,65550.0,0.197857]
[1727597479367,0.011,65552.0,65550.0,0.197857]
[1727597479961,0.001,65552.0,65550.0,0.197857]
[1727597480668,0.011,65552.0,65550.0,0.197857]
[1727597484164,0.011,65552.0,65550.0,0.27404843]
[1727597486477,0.011,65552.0,65551.0,0.07619143]
[1727597486679,0.001,65552.0,65551.0,0.16619143]
[1727597488281,0.001,65552.0,65551.0,0.25252721]
[1727597489172,0.076255,65553.0,65551.0,0.25252721]
[1727597489374,0.001,65552.0,65551.0,0.16619143]
[1727597489580,0.001,65552.0,65551.0,0.17634494]
[1727597490780,0.011,65552.0,65551.0,0.17634494]
[1727597491288,0.001,65552.0,65551.0,0.17634494]
[1727597492189,0.001,65552.0,65551.0,0.176355]
[1727597492580,0.011,65552.0,65551.0,0.176355]
[1727597492780,0.001,65552.0,65551.0,0.176355]
[1727597495280,0.077256,65552.0,65551.0,0.26765333]
[1727597496178,0.077256,65552.0,65551.0,0.176355]
[1727597497091,0.077256,65552.0,65551.0,0.33978941]
[1727597497289,0.077256,65552.0,65551.0,0.44288156]
[1727597497492,0.077256,65552.0,65551.0,0.33978941]
[1727597500893,0.077256,65552.0,65551.0,0.4428749]
[1727597502295,0.077256,65552.0,65551.0,0.5191319]
[1727597506804,0.001,65552.0,65551.0,0.5191319]
[1727597509297,0.001,65552.0,65551.0,0.87368641]
[1727597509596,0.001,65552.0,65551.0,0.97676335]
[1727597511095,0.001,65552.0,65551.0,0.51912335]
[1727597516102,0.0036,65559.0,65551.0,0.80336811]
[1727597516407,0.0036,65559.0,65558.0,0.3608]
[1727597516609,0.076247,65560.0,65558.0,0.447155]
[1727597516812,0.076247,65560.0,65559.0,0.086355]
[1727597517010,0.0301,65564.0,65559.0,0.162603]
[1727597517321,0.076243,65563.0,65562.0,0.07620463]
[1727597517611,0.086243,65563.0,65562.0,0.07620463]
[1727597518807,0.086243,65563.0,65559.0,0.076248]
[1727597518808,0.086243,65563.0,65561.0,0.07620463]
[1727597519510,0.117343,65563.0,65561.0,0.07620463]
[1727597519811,0.148243,65563.0,65561.0,0.07620463]
[1727597521513,0.148243,65563.0,65560.0,0.07620463]
[1727597522812,0.12,65561.0,65560.0,0.07620463]
[1727597523013,0.12,65561.0,65559.0,0.002]
[1727597523014,0.076246,65560.0,65559.0,0.07720463]
[1727597523309,0.076248,65559.0,65557.0,0.07620463]
[1727597523509,0.186248,65559.0,65555.0,0.07620463]
[1727597523708,0.12,65556.0,65555.0,0.08620463]
[1727597523908,0.17,65556.0,65555.0,0.17251444]
[1727597524111,0.17,65556.0,65555.0,0.17251757]
[1727597524307,0.17,65556.0,65555.0,0.08620463]
[1727597524503,0.17,65556.0,65555.0,0.06270178]
[1727597524702,0.17,65556.0,65552.0,0.00096]